[Event "Titled Tuesday Blitz July 18 Early 2023"]
[White "robertoalejandro10"]
[Black "Rychagov, Andrey"]
[BlackFideId "4119932"]
[WhiteElo "2556"]
[BlackElo "2693"]
[Result "0-1"]
[Round "7"]
[TimeControl "180+2"]
[Date "2023.07.18"]
[WhiteClock "0:00:00"]
[BlackClock "0:00:41"]
[Board "48"]

1. Nf3 {[%clk 0:02:59]}  d5 {[%clk 0:02:42]} 2. b3 {[%clk 0:02:57]}  c6 {[%clk 0:02:41]} 3. Bb2 {[%clk 0:02:57]}  Bg4 {[%clk 0:02:42]} 4. g3 {[%clk 0:02:56]}  Nd7 {[%clk 0:02:41]} 5. Bg2 {[%clk 0:02:56]}  Ngf6 {[%clk 0:02:41]} 6. O-O {[%clk 0:02:55]}  e6 {[%clk 0:02:41]} 7. d3 {[%clk 0:02:50]}  Be7 {[%clk 0:02:41]} 8. Nbd2 {[%clk 0:02:50]}  O-O {[%clk 0:02:40]} 9. c4 {[%clk 0:02:46]}  a5 {[%clk 0:02:38]} 10. a3 {[%clk 0:02:42]}  b5 {[%clk 0:02:38]} 11. Ra2 {[%clk 0:02:41]}  bxc4 {[%clk 0:02:27]} 12. bxc4 {[%clk 0:02:42]}  a4 {[%clk 0:02:25]} 13. Qa1 {[%clk 0:02:41]}  Nc5 {[%clk 0:02:15]} 14. h3 {[%clk 0:02:12]}  Bxf3 {[%clk 0:02:12]} 15. Nxf3 {[%clk 0:02:13]}  Nb3 {[%clk 0:02:09]} 16. Qd1 {[%clk 0:01:59]}  Qc7 {[%clk 0:02:08]} 17. Qc2 {[%clk 0:01:57]}  Rfc8 {[%clk 0:02:08]} 18. Bc1 {[%clk 0:01:31]}  Nd7 {[%clk 0:02:02]} 19. Be3 {[%clk 0:01:26]}  Bc5 {[%clk 0:02:00]} 20. Bxc5 {[%clk 0:01:11]}  Ndxc5 {[%clk 0:02:00]} 21. Rb2 {[%clk 0:01:10]}  d4 {[%clk 0:01:54]} 22. Rfb1 {[%clk 0:01:06]}  e5 {[%clk 0:01:53]} 23. Nd2 {[%clk 0:01:04]}  Nxd2 {[%clk 0:01:51]} 24. Qxd2 {[%clk 0:01:02]}  Nb3 {[%clk 0:01:51]} 25. Rxb3 {[%clk 0:00:57]}  axb3 {[%clk 0:01:50]} 26. Rxb3 {[%clk 0:00:57]}  Rcb8 {[%clk 0:01:49]} 27. Qb2 {[%clk 0:00:39]}  g6 {[%clk 0:01:41]} 28. Bf3 {[%clk 0:00:36]}  h5 {[%clk 0:01:39]} 29. h4 {[%clk 0:00:36]}  Kg7 {[%clk 0:01:26]} 30. Kg2 {[%clk 0:00:36]}  f5 {[%clk 0:01:19]} 31. c5 {[%clk 0:00:25]}  Rxb3 {[%clk 0:01:15]} 32. Qxb3 {[%clk 0:00:25]}  Re8 {[%clk 0:01:15]} 33. e3 {[%clk 0:00:18]}  e4 {[%clk 0:01:10]} 34. Be2 {[%clk 0:00:18]}  dxe3 {[%clk 0:01:08]} 35. fxe3 {[%clk 0:00:18]}  exd3 {[%clk 0:01:07]} 36. Qxd3 {[%clk 0:00:19]}  Qe5 {[%clk 0:01:06]} 37. Kf2 {[%clk 0:00:16]}  Qxc5 {[%clk 0:01:06]} 38. Qd7+ {[%clk 0:00:17]}  Re7 {[%clk 0:01:06]} 39. Qd3 {[%clk 0:00:16]}  Qd5 {[%clk 0:00:56]} 40. Qc3+ {[%clk 0:00:14]}  Qe5 {[%clk 0:00:56]} 41. Qd3 {[%clk 0:00:13]}  c5 {[%clk 0:00:56]} 42. a4 {[%clk 0:00:12]}  c4 {[%clk 0:00:56]} 43. Qxc4 {[%clk 0:00:11]}  Qxe3+ {[%clk 0:00:56]} 44. Kf1 {[%clk 0:00:12]}  Qxg3 {[%clk 0:00:54]} 45. a5 {[%clk 0:00:11]}  Rc7 {[%clk 0:00:54]} 46. Qd4+ {[%clk 0:00:09]}  Kh7 {[%clk 0:00:54]} 47. a6 {[%clk 0:00:08]}  Qa3 {[%clk 0:00:44]} 48. Kf2 {[%clk 0:00:03]}  Qc5 {[%clk 0:00:43]} 49. Qxc5 {[%clk 0:00:03]}  Rxc5 {[%clk 0:00:43]} 50. Ke3 {[%clk 0:00:04]}  Ra5 {[%clk 0:00:43]} 51. Kd4 {[%clk 0:00:04]}  f4 {[%clk 0:00:43]} 52. Ke4 {[%clk 0:00:02]}  Ra4+ {[%clk 0:00:43]} 53. Ke5 {[%clk 0:00:02]}  f3 {[%clk 0:00:42]} 54. a7 {[%clk 0:00:00]}  fxe2 {[%clk 0:00:41]} 0-1


[Site "https://www.chess.com"]

[Event "Titled Tuesday Blitz July 18 Early 2023"]
[White "Jimenez Almeida, Luis David"]
[Black "Nouri, Alekhine"]
[WhiteFideId "22242244"]
[BlackFideId "5216184"]
[WhiteElo "2543"]
[BlackElo "2683"]
[Result "1/2-1/2"]
[Round "7"]
[TimeControl "180+2"]
[Date "2023.07.18"]
[WhiteClock "0:00:06"]
[BlackClock "0:00:06"]
[Board "50"]

1. e4 {[%clk 0:03:00]}  c5 {[%clk 0:02:58]} 2. Nc3 {[%clk 0:03:00]}  Nc6 {[%clk 0:02:58]} 3. Nge2 {[%clk 0:02:58]}  g6 {[%clk 0:02:58]} 4. g3 {[%clk 0:02:57]}  Bg7 {[%clk 0:02:59]} 5. d3 {[%clk 0:02:57]}  d6 {[%clk 0:02:58]} 6. Be3 {[%clk 0:02:57]}  Nf6 {[%clk 0:02:59]} 7. h3 {[%clk 0:02:57]}  O-O {[%clk 0:02:59]} 8. Qd2 {[%clk 0:02:57]}  Rb8 {[%clk 0:02:59]} 9. a4 {[%clk 0:02:55]}  a6 {[%clk 0:03:00]} 10. Bg2 {[%clk 0:02:55]}  b5 {[%clk 0:03:00]} 11. axb5 {[%clk 0:02:56]}  axb5 {[%clk 0:03:01]} 12. O-O {[%clk 0:02:56]}  b4 {[%clk 0:03:01]} 13. Nd1 {[%clk 0:02:56]}  Bb7 {[%clk 0:02:55]} 14. Bh6 {[%clk 0:02:55]}  Ra8 {[%clk 0:02:55]} 15. Rxa8 {[%clk 0:02:33]}  Qxa8 {[%clk 0:02:54]} 16. Bxg7 {[%clk 0:02:33]}  Kxg7 {[%clk 0:02:54]} 17. Ne3 {[%clk 0:02:29]}  Qa2 {[%clk 0:02:52]} 18. b3 {[%clk 0:02:09]}  Ba6 {[%clk 0:02:43]} 19. Kh2 {[%clk 0:02:02]}  Bb5 {[%clk 0:02:27]} 20. g4 {[%clk 0:01:56]}  Nd7 {[%clk 0:02:26]} 21. Nd5 {[%clk 0:01:49]}  e6 {[%clk 0:02:23]} 22. Nc7 {[%clk 0:01:44]}  Rb8 {[%clk 0:02:18]} 23. Ng3 {[%clk 0:01:36]}  Nd4 {[%clk 0:02:11]} 24. Nxb5 {[%clk 0:01:34]}  Rxb5 {[%clk 0:02:11]} 25. Qg5 {[%clk 0:01:24]}  f6 {[%clk 0:02:06]} 26. Nh5+ {[%clk 0:01:14]}  Kf7 {[%clk 0:02:01]} 27. Qh6 {[%clk 0:01:11]}  gxh5 {[%clk 0:02:01]} 28. Qxh7+ {[%clk 0:01:11]}  Ke8 {[%clk 0:02:01]} 29. gxh5 {[%clk 0:01:06]}  Qxc2 {[%clk 0:01:58]} 30. Qg6+ {[%clk 0:01:01]}  Kd8 {[%clk 0:01:16]} 31. h6 {[%clk 0:01:02]}  Kc7 {[%clk 0:01:16]} 32. h7 {[%clk 0:00:33]}  Rb8 {[%clk 0:01:15]} 33. Qg8 {[%clk 0:00:33]}  Rxg8 {[%clk 0:01:09]} 34. hxg8=Q {[%clk 0:00:34]}  Qxb3 {[%clk 0:00:48]} 35. Ra1 {[%clk 0:00:33]}  Nc6 {[%clk 0:00:39]} 36. e5 {[%clk 0:00:23]}  d5 {[%clk 0:00:26]} 37. exf6 {[%clk 0:00:22]}  Qc3 {[%clk 0:00:26]} 38. Re1 {[%clk 0:00:17]}  Qxf6 {[%clk 0:00:22]} 39. Rxe6 {[%clk 0:00:15]}  Qf4+ {[%clk 0:00:22]} 40. Qg3 {[%clk 0:00:14]}  Qxg3+ {[%clk 0:00:23]} 41. Kxg3 {[%clk 0:00:15]}  Nb6 {[%clk 0:00:16]} 42. h4 {[%clk 0:00:13]}  b3 {[%clk 0:00:17]} 43. Re1 {[%clk 0:00:12]}  c4 {[%clk 0:00:17]} 44. dxc4 {[%clk 0:00:12]}  dxc4 {[%clk 0:00:18]} 45. h5 {[%clk 0:00:12]}  Nd4 {[%clk 0:00:18]} 46. Be4 {[%clk 0:00:10]}  Nd7 {[%clk 0:00:10]} 47. Rc1 {[%clk 0:00:06]}  Ne5 {[%clk 0:00:02]} 48. Kg2 {[%clk 0:00:02]}  b2 {[%clk 0:00:01]} 49. Rd1 {[%clk 0:00:03]}  c3 {[%clk 0:00:01]} 50. Rxd4 {[%clk 0:00:02]}  Kb6 {[%clk 0:00:01]} 51. Rb4+ {[%clk 0:00:02]}  Kc5 {[%clk 0:00:01]} 52. Rb8 {[%clk 0:00:03]}  Kd4 {[%clk 0:00:02]} 53. Bc2 {[%clk 0:00:02]}  Nc4 {[%clk 0:00:02]} 54. Rd8+ {[%clk 0:00:02]}  Kc5 {[%clk 0:00:03]} 55. h6 {[%clk 0:00:03]}  Na3 {[%clk 0:00:03]} 56. Be4 {[%clk 0:00:03]}  c2 {[%clk 0:00:03]} 57. Bxc2 {[%clk 0:00:03]}  Nxc2 {[%clk 0:00:04]} 58. Rb8 {[%clk 0:00:04]}  Nb4 {[%clk 0:00:03]} 59. Rc8+ {[%clk 0:00:04]}  Kb6 {[%clk 0:00:04]} 60. h7 {[%clk 0:00:04]}  b1=Q {[%clk 0:00:04]} 61. h8=Q {[%clk 0:00:05]}  Qg6+ {[%clk 0:00:04]} 62. Kf1 {[%clk 0:00:05]}  Qd3+ {[%clk 0:00:03]} 63. Kg1 {[%clk 0:00:05]}  Qg6+ {[%clk 0:00:03]} 64. Kh1 {[%clk 0:00:05]}  Qe4+ {[%clk 0:00:03]} 65. Kg1 {[%clk 0:00:06]}  Qg4+ {[%clk 0:00:03]} 66. Kh2 {[%clk 0:00:06]}  Qf4+ {[%clk 0:00:03]} 67. Kg2 {[%clk 0:00:06]}  Qg4+ {[%clk 0:00:04]} 68. Kh2 {[%clk 0:00:06]}  Qf4+ {[%clk 0:00:04]} 69. Kg1 {[%clk 0:00:06]}  Qg4+ {[%clk 0:00:05]} 70. Kf1 {[%clk 0:00:07]}  Qd1+ {[%clk 0:00:05]} 71. Kg2 {[%clk 0:00:07]}  Qg4+ {[%clk 0:00:05]} 72. Kh1 {[%clk 0:00:06]}  Qe4+ {[%clk 0:00:05]} 73. Kg1 {[%clk 0:00:06]}  Qg4+ {[%clk 0:00:06]} 1/2-1/2


[Site "https://www.chess.com"]

[Event "Titled Tuesday Blitz July 18 Early 2023"]
[White "Tica, Sven"]
[Black "AyMitecK"]
[WhiteFideId "14526948"]
[WhiteElo "2682"]
[BlackElo "2541"]
[Result "1-0"]
[Round "7"]
[TimeControl "180+2"]
[Date "2023.07.18"]
[WhiteClock "0:00:59"]
[BlackClock "0:01:25"]
[Board "51"]

1. Nf3 {[%clk 0:03:00]}  Nf6 {[%clk 0:02:58]} 2. g3 {[%clk 0:03:01]}  e6 {[%clk 0:02:58]} 3. Bg2 {[%clk 0:03:01]}  d5 {[%clk 0:02:59]} 4. O-O {[%clk 0:03:02]}  Bd6 {[%clk 0:02:59]} 5. d3 {[%clk 0:03:02]}  h6 {[%clk 0:02:59]} 6. Nbd2 {[%clk 0:03:02]}  O-O {[%clk 0:02:59]} 7. e4 {[%clk 0:03:02]}  dxe4 {[%clk 0:02:59]} 8. dxe4 {[%clk 0:03:03]}  e5 {[%clk 0:02:59]} 9. Nc4 {[%clk 0:03:02]}  Nc6 {[%clk 0:03:00]} 10. Qe2 {[%clk 0:03:00]}  Qe7 {[%clk 0:02:57]} 11. c3 {[%clk 0:03:00]}  Bc5 {[%clk 0:02:56]} 12. h3 {[%clk 0:02:58]}  a6 {[%clk 0:02:55]} 13. a4 {[%clk 0:02:57]}  Rb8 {[%clk 0:02:54]} 14. b4 {[%clk 0:02:56]}  Ba7 {[%clk 0:02:54]} 15. b5 {[%clk 0:02:54]}  Nd8 {[%clk 0:02:50]} 16. Nfxe5 {[%clk 0:02:51]}  Re8 {[%clk 0:02:50]} 17. Rd1 {[%clk 0:02:47]}  Ne6 {[%clk 0:02:41]} 18. Nd3 {[%clk 0:02:39]}  Nc5 {[%clk 0:02:38]} 19. e5 {[%clk 0:02:37]}  Nxd3 {[%clk 0:02:33]} 20. Qxd3 {[%clk 0:02:38]}  Nd7 {[%clk 0:02:28]} 21. Re1 {[%clk 0:02:30]}  Nc5 {[%clk 0:02:27]} 22. Qc2 {[%clk 0:02:25]}  Be6 {[%clk 0:02:24]} 23. Ne3 {[%clk 0:02:25]}  Bb3 {[%clk 0:02:15]} 24. Qe2 {[%clk 0:02:02]}  Bxa4 {[%clk 0:02:11]} 25. bxa6 {[%clk 0:02:01]}  bxa6 {[%clk 0:02:11]} 26. Nd5 {[%clk 0:01:50]}  Qd8 {[%clk 0:02:07]} 27. Rxa4 {[%clk 0:01:35]}  Nxa4 {[%clk 0:02:06]} 28. Qg4 {[%clk 0:01:36]}  Nc5 {[%clk 0:01:48]} 29. Bxh6 {[%clk 0:01:32]}  Ne6 {[%clk 0:01:42]} 30. Be4 {[%clk 0:01:14]}  Kf8 {[%clk 0:01:32]} 31. Qh5 {[%clk 0:01:03]}  c6 {[%clk 0:01:28]} 32. Bxg7+ {[%clk 0:00:58]}  Kxg7 {[%clk 0:01:26]} 33. Qh7+ {[%clk 0:00:59]}  Kf8 {[%clk 0:01:25]} 34. Qh8# {[%clk 0:00:59]} 1-0


[Site "https://www.chess.com"]

[Event "Titled Tuesday Blitz July 18 Early 2023"]
[White "Ovchinnikov, Vsevolod"]
[Black "Tomaszewski, Kacper"]
[WhiteFideId "24176842"]
[BlackFideId "1127373"]
[WhiteElo "2650"]
[BlackElo "2495"]
[Result "1-0"]
[Round "7"]
[TimeControl "180+2"]
[Date "2023.07.18"]
[WhiteClock "0:00:44"]
[BlackClock "0:00:17"]
[Board "56"]

1. d4 {[%clk 0:03:00]}  Nf6 {[%clk 0:02:58]} 2. c4 {[%clk 0:02:59]}  e6 {[%clk 0:02:59]} 3. g3 {[%clk 0:03:00]}  d5 {[%clk 0:02:56]} 4. Nf3 {[%clk 0:02:59]}  c5 {[%clk 0:02:55]} 5. Bg2 {[%clk 0:02:59]}  cxd4 {[%clk 0:02:43]} 6. Nxd4 {[%clk 0:02:58]}  Bb4+ {[%clk 0:02:37]} 7. Bd2 {[%clk 0:02:58]}  Bxd2+ {[%clk 0:02:36]} 8. Nxd2 {[%clk 0:02:53]}  O-O {[%clk 0:02:36]} 9. cxd5 {[%clk 0:02:50]}  Nxd5 {[%clk 0:02:35]} 10. O-O {[%clk 0:02:49]}  Bd7 {[%clk 0:02:34]} 11. Nc4 {[%clk 0:02:25]}  Nc6 {[%clk 0:02:31]} 12. Nb3 {[%clk 0:02:26]}  Nb6 {[%clk 0:02:07]} 13. Nd6 {[%clk 0:02:18]}  Rb8 {[%clk 0:01:54]} 14. Nc5 {[%clk 0:02:10]}  Na5 {[%clk 0:01:23]} 15. b4 {[%clk 0:01:54]}  Nc6 {[%clk 0:01:22]} 16. a3 {[%clk 0:01:28]}  Qe7 {[%clk 0:00:45]} 17. Ndxb7 {[%clk 0:01:16]}  Ne5 {[%clk 0:00:40]} 18. Qd6 {[%clk 0:01:09]}  Qxd6 {[%clk 0:00:35]} 19. Nxd6 {[%clk 0:01:10]}  Bc6 {[%clk 0:00:36]} 20. Rfd1 {[%clk 0:00:47]}  Bxg2 {[%clk 0:00:35]} 21. Kxg2 {[%clk 0:00:48]}  Nec4 {[%clk 0:00:23]} 22. Nxc4 {[%clk 0:00:47]}  Nxc4 {[%clk 0:00:24]} 23. Nd7 {[%clk 0:00:48]}  Nb2 {[%clk 0:00:17]} 24. Rdb1 {[%clk 0:00:44]} 1-0


[Site "https://www.chess.com"]

[Event "Titled Tuesday Blitz July 18 Early 2023"]
[White "Schnaider, Ilan"]
[Black "Besedes, Danilo"]
[WhiteFideId "169013"]
[BlackFideId "946796"]
[WhiteElo "2637"]
[BlackElo "2488"]
[Result "1-0"]
[Round "7"]
[TimeControl "180+2"]
[Date "2023.07.18"]
[WhiteClock "0:01:43"]
[BlackClock "0:00:00"]
[Board "57"]

1. e4 {[%clk 0:03:00]}  g6 {[%clk 0:02:59]} 2. d4 {[%clk 0:03:00]}  Bg7 {[%clk 0:03:00]} 3. Nc3 {[%clk 0:03:01]}  d6 {[%clk 0:02:59]} 4. f4 {[%clk 0:03:01]}  c6 {[%clk 0:02:58]} 5. Nf3 {[%clk 0:03:01]}  d5 {[%clk 0:02:59]} 6. e5 {[%clk 0:03:01]}  Bg4 {[%clk 0:02:58]} 7. Be2 {[%clk 0:03:01]}  h5 {[%clk 0:02:58]} 8. Be3 {[%clk 0:02:59]}  Nh6 {[%clk 0:02:58]} 9. h3 {[%clk 0:02:52]}  Bxf3 {[%clk 0:02:58]} 10. Bxf3 {[%clk 0:02:53]}  Nf5 {[%clk 0:02:53]} 11. Bf2 {[%clk 0:02:54]}  h4 {[%clk 0:02:40]} 12. Bg4 {[%clk 0:02:53]}  e6 {[%clk 0:02:39]} 13. Ne2 {[%clk 0:02:48]}  Nd7 {[%clk 0:02:37]} 14. Bxf5 {[%clk 0:02:47]}  exf5 {[%clk 0:02:33]} 15. Ng1 {[%clk 0:02:48]}  Bf8 {[%clk 0:02:31]} 16. Nf3 {[%clk 0:02:47]}  Be7 {[%clk 0:02:32]} 17. O-O {[%clk 0:02:43]}  Nf8 {[%clk 0:02:31]} 18. c4 {[%clk 0:02:43]}  dxc4 {[%clk 0:02:28]} 19. Rc1 {[%clk 0:02:39]}  Qd5 {[%clk 0:02:27]} 20. Qe2 {[%clk 0:02:36]}  Ne6 {[%clk 0:02:19]} 21. Be3 {[%clk 0:02:35]}  b5 {[%clk 0:01:57]} 22. b3 {[%clk 0:02:34]}  cxb3 {[%clk 0:01:53]} 23. axb3 {[%clk 0:02:35]}  O-O {[%clk 0:01:41]} 24. Qf2 {[%clk 0:02:32]}  a5 {[%clk 0:01:30]} 25. Nxh4 {[%clk 0:02:32]}  Bxh4 {[%clk 0:01:27]} 26. Qxh4 {[%clk 0:02:31]}  a4 {[%clk 0:01:21]} 27. bxa4 {[%clk 0:02:31]}  bxa4 {[%clk 0:01:22]} 28. g4 {[%clk 0:02:31]}  Nxd4 {[%clk 0:01:07]} 29. Qf2 {[%clk 0:02:30]}  Rfd8 {[%clk 0:00:56]} 30. Rfd1 {[%clk 0:02:08]}  Nf3+ {[%clk 0:00:51]} 31. Kg2 {[%clk 0:02:09]}  Ne1+ {[%clk 0:00:50]} 32. Kf1 {[%clk 0:02:00]}  Qh1+ {[%clk 0:00:49]} 33. Ke2 {[%clk 0:01:59]}  Qxh3 {[%clk 0:00:32]} 34. Rxe1 {[%clk 0:01:48]}  Qxg4+ {[%clk 0:00:31]} 35. Qf3 {[%clk 0:01:48]}  Qxf3+ {[%clk 0:00:29]} 36. Kxf3 {[%clk 0:01:49]}  a3 {[%clk 0:00:29]} 37. Rxc6 {[%clk 0:01:48]}  a2 {[%clk 0:00:28]} 38. Ra1 {[%clk 0:01:49]}  Rd3 {[%clk 0:00:25]} 39. Ke2 {[%clk 0:01:42]}  Raa3 {[%clk 0:00:00]} 40. Bc5 {[%clk 0:01:43]} 1-0


[Site "https://www.chess.com"]

[Event "Titled Tuesday Blitz July 18 Early 2023"]
[White "Goldin, Roman"]
[Black "Mendez Fortes, Eduardo Jesus"]
[WhiteFideId "2803860"]
[BlackFideId "3502376"]
[WhiteElo "2449"]
[BlackElo "2635"]
[Result "0-1"]
[Round "7"]
[TimeControl "180+2"]
[Date "2023.07.18"]
[WhiteClock "0:00:00"]
[BlackClock "0:00:38"]
[Board "58"]

1. e4 {[%clk 0:02:59]}  c5 {[%clk 0:02:59]} 2. Nf3 {[%clk 0:02:58]}  d6 {[%clk 0:02:59]} 3. Bc4 {[%clk 0:02:58]}  e6 {[%clk 0:02:56]} 4. d3 {[%clk 0:02:57]}  g6 {[%clk 0:02:55]} 5. a3 {[%clk 0:02:56]}  Bg7 {[%clk 0:02:56]} 6. Ba2 {[%clk 0:02:56]}  Ne7 {[%clk 0:02:55]} 7. O-O {[%clk 0:02:57]}  O-O {[%clk 0:02:55]} 8. Nc3 {[%clk 0:02:57]}  Nbc6 {[%clk 0:02:55]} 9. Ng5 {[%clk 0:02:57]}  Rb8 {[%clk 0:02:51]} 10. f4 {[%clk 0:02:56]}  b5 {[%clk 0:02:50]} 11. Kh1 {[%clk 0:02:18]}  Nd4 {[%clk 0:02:46]} 12. Ne2 {[%clk 0:02:16]}  Nxe2 {[%clk 0:02:36]} 13. Qxe2 {[%clk 0:02:16]}  d5 {[%clk 0:02:36]} 14. a4 {[%clk 0:01:39]}  bxa4 {[%clk 0:02:31]} 15. Rb1 {[%clk 0:01:28]}  Bb7 {[%clk 0:02:10]} 16. f5 {[%clk 0:01:26]}  exf5 {[%clk 0:02:06]} 17. exf5 {[%clk 0:01:25]}  Nxf5 {[%clk 0:02:03]} 18. Rxf5 {[%clk 0:01:22]}  gxf5 {[%clk 0:02:02]} 19. Bf4 {[%clk 0:01:19]}  Rc8 {[%clk 0:01:56]} 20. Qh5 {[%clk 0:01:05]}  h6 {[%clk 0:01:55]} 21. Nf3 {[%clk 0:01:01]}  Qf6 {[%clk 0:01:49]} 22. Nh4 {[%clk 0:00:46]}  Rce8 {[%clk 0:01:24]} 23. Rf1 {[%clk 0:00:39]}  Kh7 {[%clk 0:01:12]} 24. c3 {[%clk 0:00:33]}  Re6 {[%clk 0:01:06]} 25. d4 {[%clk 0:00:26]}  Rfe8 {[%clk 0:01:02]} 26. Bb1 {[%clk 0:00:22]}  Re1 {[%clk 0:00:54]} 27. Bxf5+ {[%clk 0:00:22]}  Kg8 {[%clk 0:00:53]} 28. Kg1 {[%clk 0:00:20]}  Rxf1+ {[%clk 0:00:52]} 29. Kxf1 {[%clk 0:00:19]}  Bc8 {[%clk 0:00:49]} 30. Bxc8 {[%clk 0:00:18]}  Qxf4+ {[%clk 0:00:48]} 31. Nf3 {[%clk 0:00:10]}  Rxc8 {[%clk 0:00:43]} 32. Qxd5 {[%clk 0:00:09]}  Qc1+ {[%clk 0:00:41]} 33. Kf2 {[%clk 0:00:09]}  Qxb2+ {[%clk 0:00:41]} 34. Kg3 {[%clk 0:00:09]}  a3 {[%clk 0:00:38]} 35. Qd7 {[%clk 0:00:06]}  Rf8 {[%clk 0:00:37]} 36. dxc5 {[%clk 0:00:04]}  Qxc3 {[%clk 0:00:37]} 37. c6 {[%clk 0:00:00]}  a2 {[%clk 0:00:38]} 0-1


[Site "https://www.chess.com"]

[Event "Titled Tuesday Blitz July 18 Early 2023"]
[White "Gorovets, Andrey"]
[Black "Sadykov, Ramil"]
[WhiteFideId "13504037"]
[BlackFideId "24113590"]
[WhiteElo "2832"]
[BlackElo "2585"]
[Result "1-0"]
[Round "7"]
[TimeControl "180+2"]
[Date "2023.07.18"]
[WhiteClock "0:00:25"]
[BlackClock "0:00:00"]
[Board "61"]

1. Nf3 {[%clk 0:02:55]}  Nf6 {[%clk 0:02:56]} 2. d4 {[%clk 0:02:54]}  g6 {[%clk 0:02:55]} 3. c4 {[%clk 0:02:54]}  Bg7 {[%clk 0:02:55]} 4. g3 {[%clk 0:02:55]}  O-O {[%clk 0:02:55]} 5. Bg2 {[%clk 0:02:55]}  d5 {[%clk 0:02:54]} 6. cxd5 {[%clk 0:02:54]}  Nxd5 {[%clk 0:02:55]} 7. O-O {[%clk 0:02:55]}  Nb6 {[%clk 0:02:52]} 8. Nc3 {[%clk 0:02:53]}  Nc6 {[%clk 0:02:51]} 9. d5 {[%clk 0:02:52]}  Na5 {[%clk 0:02:51]} 10. Qc2 {[%clk 0:02:52]}  Bf5 {[%clk 0:01:34]} 11. e4 {[%clk 0:02:52]}  Bg4 {[%clk 0:01:33]} 12. Bf4 {[%clk 0:02:35]}  c6 {[%clk 0:01:31]} 13. Ne5 {[%clk 0:02:33]}  Bxe5 {[%clk 0:00:40]} 14. Bxe5 {[%clk 0:02:34]}  Nac4 {[%clk 0:00:37]} 15. Bf4 {[%clk 0:02:27]}  e5 {[%clk 0:00:37]} 16. Bh6 {[%clk 0:02:24]}  Re8 {[%clk 0:00:38]} 17. h3 {[%clk 0:02:11]}  Bd7 {[%clk 0:00:37]} 18. b3 {[%clk 0:02:07]}  Nd6 {[%clk 0:00:36]} 19. f4 {[%clk 0:02:07]}  Qe7 {[%clk 0:00:32]} 20. fxe5 {[%clk 0:01:56]}  Qxe5 {[%clk 0:00:32]} 21. Bf4 {[%clk 0:01:56]}  Qd4+ {[%clk 0:00:32]} 22. Kh2 {[%clk 0:01:55]}  Nxe4 {[%clk 0:00:12]} 23. Nxe4 {[%clk 0:01:51]}  Bf5 {[%clk 0:00:12]} 24. dxc6 {[%clk 0:01:12]}  bxc6 {[%clk 0:00:05]} 25. Rae1 {[%clk 0:01:01]}  Nd5 {[%clk 0:00:06]} 26. Qd2 {[%clk 0:00:46]}  Qxd2 {[%clk 0:00:03]} 27. Bxd2 {[%clk 0:00:44]}  a5 {[%clk 0:00:01]} 28. Nd6 {[%clk 0:00:40]}  Rxe1 {[%clk 0:00:02]} 29. Rxe1 {[%clk 0:00:40]}  Be6 {[%clk 0:00:02]} 30. Rc1 {[%clk 0:00:35]}  a4 {[%clk 0:00:03]} 31. b4 {[%clk 0:00:32]}  a3 {[%clk 0:00:03]} 32. Rxc6 {[%clk 0:00:29]}  Ne7 {[%clk 0:00:03]} 33. Rc7 {[%clk 0:00:29]}  Rd8 {[%clk 0:00:01]} 34. Rxe7 {[%clk 0:00:27]}  Rxd6 {[%clk 0:00:02]} 35. Bh6 {[%clk 0:00:27]}  Rd8 {[%clk 0:00:00]} 36. Ra7 {[%clk 0:00:25]} 1-0


[Site "https://www.chess.com"]

[Event "Titled Tuesday Blitz July 18 Early 2023"]
[White "Fiorito, Joaquin"]
[Black "Kashlinskaya, Alina"]
[WhiteFideId "180173"]
[BlackFideId "4198026"]
[WhiteElo "2721"]
[BlackElo "2579"]
[Result "0-1"]
[Round "7"]
[TimeControl "180+2"]
[Date "2023.07.18"]
[WhiteClock "0:00:13"]
[BlackClock "0:01:49"]
[Board "63"]

1. d4 {[%clk 0:03:00]}  Nf6 {[%clk 0:02:59]} 2. Nc3 {[%clk 0:03:00]}  d5 {[%clk 0:02:59]} 3. Bf4 {[%clk 0:03:01]}  e6 {[%clk 0:02:56]} 4. Nb5 {[%clk 0:03:01]}  Na6 {[%clk 0:02:56]} 5. e3 {[%clk 0:03:01]}  Be7 {[%clk 0:02:55]} 6. Nf3 {[%clk 0:03:01]}  O-O {[%clk 0:02:55]} 7. h4 {[%clk 0:03:00]}  c6 {[%clk 0:02:54]} 8. Nc3 {[%clk 0:03:01]}  c5 {[%clk 0:02:54]} 9. h5 {[%clk 0:03:00]}  h6 {[%clk 0:02:53]} 10. g4 {[%clk 0:02:58]}  Nxg4 {[%clk 0:02:48]} 11. Rg1 {[%clk 0:02:57]}  f5 {[%clk 0:02:48]} 12. Ne5 {[%clk 0:02:57]}  Nxe5 {[%clk 0:02:46]} 13. Bxe5 {[%clk 0:02:37]}  Bf6 {[%clk 0:02:46]} 14. Bxf6 {[%clk 0:02:32]}  Qxf6 {[%clk 0:02:45]} 15. Bxa6 {[%clk 0:02:30]}  bxa6 {[%clk 0:02:46]} 16. dxc5 {[%clk 0:02:31]}  Rb8 {[%clk 0:02:46]} 17. Qd4 {[%clk 0:01:17]}  Rxb2 {[%clk 0:02:39]} 18. Kd2 {[%clk 0:01:11]}  Bd7 {[%clk 0:02:32]} 19. Rg6 {[%clk 0:01:01]}  Qxd4+ {[%clk 0:02:29]} 20. exd4 {[%clk 0:01:02]}  Rb4 {[%clk 0:02:29]} 21. Kd3 {[%clk 0:00:55]}  f4 {[%clk 0:02:19]} 22. Rag1 {[%clk 0:00:52]}  Rf7 {[%clk 0:02:19]} 23. Rxh6 {[%clk 0:00:38]}  Rc4 {[%clk 0:01:59]} 24. Rhg6 {[%clk 0:00:37]}  e5 {[%clk 0:02:00]} 25. dxe5 {[%clk 0:00:18]}  Bf5+ {[%clk 0:01:59]} 26. Kd2 {[%clk 0:00:19]}  Bxg6 {[%clk 0:01:59]} 27. Rxg6 {[%clk 0:00:20]}  Re7 {[%clk 0:01:50]} 28. Nxd5 {[%clk 0:00:13]}  Rd4+ {[%clk 0:01:49]} 0-1


[Site "https://www.chess.com"]

[Event "Titled Tuesday Blitz July 18 Early 2023"]
[White "Vovk, Orest"]
[Black "Stoyanov, Tsvetan"]
[WhiteFideId "14113490"]
[BlackFideId "2917173"]
[WhiteElo "2581"]
[BlackElo "2719"]
[Result "0-1"]
[Round "7"]
[TimeControl "180+2"]
[Date "2023.07.18"]
[WhiteClock "0:00:00"]
[BlackClock "0:00:14"]
[Board "64"]

1. g4 {[%clk 0:02:39]}  d5 {[%clk 0:02:58]} 2. h3 {[%clk 0:02:23]}  h5 {[%clk 0:02:57]} 3. g5 {[%clk 0:02:20]}  e5 {[%clk 0:02:57]} 4. Bg2 {[%clk 0:02:20]}  c6 {[%clk 0:02:56]} 5. d4 {[%clk 0:02:20]}  e4 {[%clk 0:02:53]} 6. c4 {[%clk 0:02:19]}  Bb4+ {[%clk 0:02:48]} 7. Nc3 {[%clk 0:02:19]}  Ne7 {[%clk 0:02:45]} 8. Qb3 {[%clk 0:02:17]}  a5 {[%clk 0:02:42]} 9. cxd5 {[%clk 0:02:03]}  cxd5 {[%clk 0:02:41]} 10. a3 {[%clk 0:02:03]}  Bd6 {[%clk 0:02:27]} 11. g6 {[%clk 0:01:50]}  Nbc6 {[%clk 0:02:02]} 12. gxf7+ {[%clk 0:01:49]}  Kf8 {[%clk 0:02:01]} 13. e3 {[%clk 0:01:37]}  Be6 {[%clk 0:01:59]} 14. Nxe4 {[%clk 0:01:22]}  a4 {[%clk 0:01:36]} 15. Qa2 {[%clk 0:01:21]}  Bb4+ {[%clk 0:01:21]} 16. Bd2 {[%clk 0:01:02]}  Bxd2+ {[%clk 0:01:20]} 17. Nxd2 {[%clk 0:01:02]}  Nf5 {[%clk 0:01:20]} 18. Ngf3 {[%clk 0:00:56]}  Rh6 {[%clk 0:01:14]} 19. h4 {[%clk 0:00:47]}  Bxf7 {[%clk 0:01:12]} 20. Bh3 {[%clk 0:00:44]}  Nxh4 {[%clk 0:01:09]} 21. O-O-O {[%clk 0:00:28]}  Nxf3 {[%clk 0:00:49]} 22. Nxf3 {[%clk 0:00:29]}  Bg6 {[%clk 0:00:49]} 23. Ne5 {[%clk 0:00:20]}  Nxe5 {[%clk 0:00:34]} 24. dxe5 {[%clk 0:00:21]}  Be4 {[%clk 0:00:23]} 25. Kd2 {[%clk 0:00:05]}  Qa5+ {[%clk 0:00:20]} 26. Ke2 {[%clk 0:00:06]}  Qb5+ {[%clk 0:00:19]} 27. Kd2 {[%clk 0:00:04]}  Rc6 {[%clk 0:00:15]} 28. Rc1 {[%clk 0:00:00]}  Qd3+ {[%clk 0:00:14]} 0-1


[Site "https://www.chess.com"]